lending/lending_fUSD_20250425
["ID","MTS","AMOUNT","RATE_DAILY","PERIOD"]
[358959543,1745589041021,-942.7695816,0.00035606,2]
[358959544,1745589041032,-17299.32437609,0.00035606,2]
[358959545,1745589041044,-15161.21048116,0.00035606,2]
[358959546,1745589041064,-1874.57435994,0.00035606,2]
[358959547,1745589041076,-432.26839026,0.00035606,2]
[358959548,1745589041088,-721.51123384,0.00035606,2]
[358959549,1745589041100,-908.05000008,0.00035606,2]
[358959550,1745589041154,-1379.68922617,0.00035606,2]
[358959558,1745589043641,-151.0,0.00034554,2]
[358959559,1745589043662,-337421.03417819,0.00035606,2]
[358959560,1745589043679,-365319.758773,0.00035606,2]
[358959561,1745589043695,-264.93924724,0.00035606,2]
[358959562,1745589043712,-50000.0,0.00035616,2]
[358959563,1745589043730,-560.0,0.00035616,5]
[358959564,1745589043749,-500.0,0.00035616,2]
[358959565,1745589043764,-383.32851248,0.00035616,2]
[358959566,1745589043776,-514.71457788,0.00035616,2]
[358959567,1745589043796,-500.0,0.00035616,2]
[358959568,1745589043811,-500.0,0.00035616,2]
[358959569,1745589043830,-500.0,0.00035616,2]
[358959570,1745589043848,-500.0,0.00035616,2]
[358959571,1745589043864,-500.0,0.00035616,2]
[358959572,1745589043881,-500.0,0.00035616,2]
[358959573,1745589043899,-500.0,0.00035616,2]
[358959574,1745589043915,-500.0,0.00035616,2]
[358959575,1745589043930,-500.0,0.00035616,2]
[358959576,1745589043946,-500.0,0.00035616,2]
[358959577,1745589043962,-500.0,0.00035616,2]
[358959578,1745589043977,-500.0,0.00035616,2]
[358959579,1745589043992,-500.0,0.00035616,2]
[358959580,1745589044005,-500.0,0.00035616,2]
[358959581,1745589044019,-500.0,0.00035616,2]
[358959582,1745589044038,-500.0,0.00035616,2]
[358959583,1745589044052,-500.0,0.00035616,2]
[358959584,1745589044065,-500.0,0.00035616,2]
[358959585,1745589044080,-500.0,0.00035616,2]
[358959586,1745589044098,-500.0,0.00035616,2]
[358959587,1745589044112,-500.0,0.00035616,2]
[358959588,1745589044125,-500.0,0.00035616,2]
[358959589,1745589044147,-500.0,0.00035616,2]
[358959590,1745589044163,-500.0,0.00035616,2]
[358959591,1745589044178,-500.0,0.00035616,2]
[358959592,1745589044192,-612.84088336,0.00035616,2]
[358959593,1745589044208,-1448.85,0.00035616,2]
[358959594,1745589044222,-500.0,0.00035616,2]
[358959595,1745589044237,-500.0,0.00035616,2]
[358959596,1745589044252,-500.0,0.00035616,2]
[358959597,1745589044267,-500.0,0.00035616,2]
[358959598,1745589044281,-500.0,0.00035616,2]
[358959599,1745589044296,-500.0,0.00035616,2]
[358959600,1745589044311,-500.0,0.00035616,2]
[358959601,1745589044327,-500.0,0.00035616,2]
[358959602,1745589044342,-928.35,0.00035616,2]
[358959603,1745589044357,-500.0,0.00035616,2]
[358959604,1745589044372,-500.0,0.00035616,2]
[358959605,1745589044386,-500.0,0.00035616,2]
[358959606,1745589044401,-500.0,0.00035616,2]
[358959607,1745589044415,-442.51424453,0.00035616,2]
[358959608,1745589044430,-500.0,0.00035616,2]
[358959609,1745589044444,-500.0,0.00035616,2]
[358959610,1745589044458,-500.0,0.00035616,2]
[358959611,1745589044473,-500.0,0.00035616,2]
[358959612,1745589044487,-500.0,0.00035616,2]
[358959613,1745589044501,-500.0,0.00035616,2]
[358959614,1745589044515,-500.0,0.00035616,2]
[358959615,1745589044529,-500.0,0.00035616,2]
[358959616,1745589044544,-500.0,0.00035616,2]
[358959617,1745589044559,-500.0,0.00035616,2]
[358959618,1745589044575,-500.0,0.00035616,2]
[358959619,1745589044590,-500.0,0.00035616,2]
[358959620,1745589044604,-500.0,0.00035616,2]
[358959621,1745589044619,-868.82,0.00035616,2]
[358959622,1745589044633,-500.0,0.00035616,2]
[358959623,1745589044650,-500.0,0.00035616,2]
[358959624,1745589044665,-500.0,0.00035616,2]
[358959625,1745589044680,-1037.47,0.00035616,2]
[358959626,1745589044695,-527.3,0.00035616,2]
[358959627,1745589044709,-500.0,0.00035616,2]
[358959628,1745589044722,-500.0,0.00035616,2]
[358959629,1745589044737,-500.0,0.00035616,2]
[358959630,1745589044751,-500.0,0.00035616,2]
[358959631,1745589044765,-500.0,0.00035616,2]
[358959632,1745589044780,-500.0,0.00035616,2]
[358959633,1745589044794,-500.0,0.00035616,2]
[358959634,1745589044808,-500.0,0.00035616,2]
[358959635,1745589044822,-506.96209056,0.00035616,2]
[358959636,1745589044836,-500.0,0.00035616,2]
[358959637,1745589044850,-500.0,0.00035616,2]
[358959638,1745589044865,-500.0,0.00035616,2]
[358959639,1745589044879,-500.0,0.00035616,2]
[358959640,1745589044894,-500.0,0.00035616,2]
[358959641,1745589044907,-500.0,0.00035616,2]
[358959642,1745589044921,-500.0,0.00035616,2]
[358959643,1745589044936,-491.37452138,0.00035616,2]
[358959644,1745589044950,-500.0,0.00035616,2]
[358959645,1745589044964,-562.49340467,0.00035616,2]
[358959646,1745589044978,-520.7597961,0.00035616,2]
[358959647,1745589044992,-500.0,0.00035616,2]
[358959648,1745589045006,-500.0,0.00035616,2]
[358959649,1745589045019,-500.0,0.00035616,2]
[358959650,1745589045033,-500.0,0.00035616,2]
[358959651,1745589045047,-500.0,0.00035616,2]
[358959652,1745589045061,-500.0,0.00035616,2]
[358959653,1745589045077,-500.0,0.00035616,2]
[358959654,1745589045091,-497.22927234,0.00035616,2]
[358959655,1745589045106,-818.36,0.00035616,2]
[358959656,1745589045120,-500.0,0.00035616,2]
[358959657,1745589045134,-914.58,0.00035616,2]
[358959658,1745589045149,-552.99123692,0.00035616,2]
[358959659,1745589045163,-586.9990047,0.00035616,2]
[358959660,1745589045177,-500.0,0.00035616,2]
[358959661,1745589045191,-500.0,0.00035616,2]
[358959662,1745589045205,-526.15712472,0.00035616,2]
[358959663,1745589045219,-500.0,0.00035616,2]
[358959664,1745589045235,-500.0,0.00035616,2]
[358959665,1745589045249,-543.7298986,0.00035616,2]
[358959666,1745589045263,-500.0,0.00035616,2]
[358959667,1745589045277,-204.34185198,0.00035616,2]
[358959668,1745589045291,-1006.84,0.00035616,2]
[358959669,1745589045305,-1541.68,0.00035616,2]
[358959670,1745589045319,-1025.15,0.00035616,2]
[358959671,1745589045336,-500.0,0.00035616,2]
[358959672,1745589045350,-500.0,0.00035616,2]
[358959673,1745589045363,-500.0,0.00035616,2]
[358959674,1745589045377,-500.0,0.00035616,2]
[358959675,1745589045391,-500.0,0.00035616,2]
[358959676,1745589045406,-500.0,0.00035616,2]
[358959677,1745589045420,-500.0,0.00035616,2]
[358959678,1745589045434,-500.0,0.00035616,2]
[358959679,1745589045447,-558.72,0.00035616,2]
[358959680,1745589045461,-500.0,0.00035616,2]
[358959681,1745589045473,-500.0,0.00035616,2]
[358959682,1745589045487,-500.0,0.00035616,2]
[358959684,1745589045501,-517.15789767,0.00035616,2]
[358959686,1745589045514,-500.0,0.00035616,2]
[358959688,1745589045527,-500.0,0.00035616,2]
[358959691,1745589045539,-500.0,0.00035616,2]
[358959693,1745589045552,-500.0,0.00035616,2]
[358959696,1745589045570,-501.13,0.00035616,2]
[358959698,1745589045583,-500.0,0.00035616,2]
[358959700,1745589045597,-1120.73,0.00035616,2]
[358959703,1745589045612,-500.0,0.00035616,2]
[358959705,1745589045626,-500.0,0.00035616,2]
[358959708,1745589045641,-500.0,0.00035616,2]
[358959710,1745589045655,-500.0,0.00035616,2]
[358959713,1745589045667,-524.69799268,0.00035616,2]
[358959715,1745589045681,-500.0,0.00035616,2]
[358959716,1745589045694,-1000.0,0.00035616,2]
[358959717,1745589045707,-620.63,0.00035616,2]
[358959718,1745589045721,-544.76613967,0.00035616,2]
[358959719,1745589045734,-500.0,0.00035616,2]
[358959720,1745589045748,-500.0,0.00035616,2]
[358959721,1745589045762,-500.0,0.00035616,2]
[358959722,1745589045775,-500.0,0.00035616,2]
[358959723,1745589045788,-500.0,0.00035616,2]
[358959724,1745589045801,-500.0,0.00035616,2]
[358959725,1745589045815,-1091.18,0.00035616,2]
[358959726,1745589045828,-500.0,0.00035616,2]
[358959727,1745589045842,-500.0,0.00035616,2]
[358959728,1745589045856,-500.0,0.00035616,2]
[358959729,1745589045870,-559.33585552,0.00035616,2]
[358959730,1745589045884,-249.37929844,0.00035616,2]
[358959731,1745589045897,-461.63209462,0.00035616,2]
[358959732,1745589045911,-500.0,0.00035616,2]
[358959733,1745589045925,-500.0,0.00035616,2]
[358959734,1745589045939,-500.0,0.00035616,2]
[358959735,1745589045953,-500.0,0.00035616,2]
[358959736,1745589045967,-500.0,0.00035616,2]
[358959737,1745589045980,-500.0,0.00035616,2]
[358959738,1745589045994,-665.8,0.00035616,2]
[358959739,1745589046008,-500.0,0.00035616,2]
[358959740,1745589046022,-500.0,0.00035616,2]
[358959741,1745589046037,-500.0,0.00035616,2]
[358959742,1745589046050,-500.0,0.00035616,2]
[358959743,1745589046064,-163.692243,0.00035616,2]
[358959744,1745589046080,-808.05,0.00035616,2]
[358959745,1745589046095,-500.0,0.00035616,2]
[358959746,1745589046109,-500.0,0.00035616,2]
[358959747,1745589046124,-159.273322,0.00035616,2]
[358959748,1745589046138,-500.0,0.00035616,2]
[358959749,1745589046153,-500.0,0.00035616,2]
[358959750,1745589046167,-920.19,0.00035616,2]
[358959751,1745589046183,-500.0,0.00035616,2]
[358959752,1745589046198,-500.0,0.00035616,2]
[358959753,1745589046208,-611.83,0.00035616,2]
[358959754,1745589046218,-500.0,0.00035616,2]
[358959755,1745589046228,-500.0,0.00035616,2]
[358959756,1745589046239,-500.0,0.00035616,2]
[358959757,1745589046249,-851.39,0.00035616,2]
[358959758,1745589046259,-538.60393484,0.00035616,2]
[358959760,1745589046269,-513.95580512,0.00035616,2]
[358959762,1745589046278,-1087.848098,0.00035616,2]
[358959763,1745589046288,-500.0,0.00035616,2]
[358959764,1745589046298,-500.0,0.00035616,2]
[358959765,1745589046308,-500.0,0.00035616,2]
[358959766,1745589046318,-169.583062,0.00035616,2]
[358959767,1745589046331,-559.24645787,0.00035616,2]
[358959768,1745589046340,-536.55513121,0.00035616,2]
[358959769,1745589046350,-500.0,0.00035616,2]
[358959770,1745589046360,-500.0,0.00035616,2]
[358959771,1745589046370,-500.0,0.00035616,2]
[358959772,1745589046379,-500.0,0.00035616,2]
[358959773,1745589046389,-500.0,0.00035616,2]
[358959774,1745589046399,-500.0,0.00035616,2]
[358959775,1745589046408,-1051.774272,0.00035616,2]
[358959776,1745589046418,-500.0,0.00035616,2]
[358959777,1745589046429,-500.0,0.00035616,2]
[358959778,1745589046439,-500.0,0.00035616,2]
[358959781,1745589047004,-500.0,0.00035616,2]
[358959782,1745589047039,-165.255322,0.00035616,2]
[358959783,1745589047072,-500.0,0.00035616,2]
[358959784,1745589047088,-500.0,0.00035616,2]
[358959785,1745589047098,-500.0,0.00035616,2]
[358959786,1745589047107,-500.0,0.00035616,2]
[358959787,1745589047117,-500.0,0.00035616,2]
[358959788,1745589047126,-500.0,0.00035616,2]
[358959789,1745589047136,-500.0,0.00035616,2]
[358959790,1745589047145,-500.0,0.00035616,2]
[358959791,1745589047155,-500.0,0.00035616,2]
[358959792,1745589047165,-500.0,0.00035616,2]
[358959793,1745589047175,-500.0,0.00035616,2]
[358959794,1745589047184,-805.74,0.00035616,2]
[358959795,1745589047195,-500.0,0.00035616,2]
[358959796,1745589047205,-1137.26,0.00035616,2]
[358959797,1745589047214,-551.25,0.00035616,2]
[358959798,1745589047224,-500.0,0.00035616,2]
[358959799,1745589047236,-509.92,0.00035616,2]
[358959800,1745589047247,-1086.56,0.00035616,2]
[358959801,1745589047256,-531.57118819,0.00035616,2]
[358959802,1745589047265,-172.80660913,0.00035616,2]
[358959803,1745589047275,-500.0,0.00035616,2]
[358959804,1745589047284,-500.0,0.00035616,2]
[358959805,1745589047294,-576.3,0.00035616,2]
[358959806,1745589047303,-500.0,0.00035616,2]
[358959807,1745589047314,-500.0,0.00035616,2]
[358959808,1745589047323,-500.0,0.00035616,2]
[358959809,1745589047336,-500.0,0.00035616,2]
[358959810,1745589047346,-500.0,0.00035616,2]
[358959811,1745589047355,-500.0,0.00035616,2]
[358959812,1745589047365,-500.0,0.00035616,2]
[358959813,1745589047375,-500.0,0.00035616,2]
[358959814,1745589047384,-500.0,0.00035616,2]
[358959815,1745589047393,-500.0,0.00035616,2]
[358959816,1745589047403,-1203.32,0.00035616,2]
[358959817,1745589047412,-500.0,0.00035616,2]
[358959818,1745589047422,-500.0,0.00035616,2]
[358959819,1745589047432,-500.0,0.00035616,2]
[358959820,1745589047442,-500.0,0.00035616,2]
[358959821,1745589047451,-500.0,0.00035616,2]
[358959822,1745589047461,-576.79037512,0.00035616,2]
[358959823,1745589047470,-1089.39,0.00035616,2]
[358959824,1745589047480,-500.0,0.00035616,2]
[358959825,1745589047489,-661.7,0.00035616,2]
[358959826,1745589047500,-500.0,0.00035616,2]
[358959827,1745589047511,-500.0,0.00035616,2]
[358959828,1745589047521,-727.83,0.00035616,2]
[358959829,1745589047531,-500.0,0.00035616,2]
[358959830,1745589047542,-500.0,0.00035616,2]
[358959831,1745589047553,-622.11,0.00035616,2]
[358959832,1745589047565,-500.0,0.00035616,2]
[358959833,1745589047577,-500.0,0.00035616,2]
[358959834,1745589047587,-500.0,0.00035616,2]
[358959835,1745589047596,-500.0,0.00035616,2]
[358959836,1745589047606,-928.28,0.00035616,2]
[358959837,1745589047616,-500.0,0.00035616,2]
[358959838,1745589047625,-500.0,0.00035616,2]
[358959839,1745589047638,-360.66285228,0.00035616,2]
[358959840,1745589047648,-500.0,0.00035616,2]
[358959841,1745589047659,-500.0,0.00035616,2]
[358959842,1745589047670,-500.0,0.00035616,2]
[358959843,1745589047679,-730.6,0.00035616,2]
[358959844,1745589047688,-500.0,0.00035616,2]
[358959845,1745589047698,-510.84515895,0.00035616,2]
[358959846,1745589047707,-500.0,0.00035616,2]
[358959847,1745589047717,-500.0,0.00035616,2]
[358959848,1745589047726,-976.3,0.00035616,2]
[358959849,1745589047737,-500.0,0.00035616,2]
[358959850,1745589047747,-525.30867834,0.00035616,2]
[358959851,1745589047757,-500.0,0.00035616,2]
[358959852,1745589047766,-500.0,0.00035616,2]
[358959853,1745589047777,-500.0,0.00035616,2]
[358959854,1745589047787,-500.0,0.00035616,2]
[358959855,1745589047796,-861.49,0.00035616,2]
[358959856,1745589047806,-2830.29,0.00035616,2]
[358959857,1745589047815,-500.0,0.00035616,2]
[358959858,1745589047825,-500.0,0.00035616,2]
[358959859,1745589047834,-500.0,0.00035616,2]
[358959860,1745589047844,-500.0,0.00035616,2]
[358959861,1745589047853,-500.0,0.00035616,2]
[358959862,1745589047863,-500.0,0.00035616,2]
[358959863,1745589047872,-500.0,0.00035616,2]
[358959864,1745589047882,-923.17,0.00035616,2]
[358959865,1745589047891,-500.0,0.00035616,2]
[358959866,1745589047901,-796.46,0.00035616,2]
[358959867,1745589047911,-1064.5,0.00035616,2]
[358959868,1745589047921,-500.0,0.00035616,2]
[358959869,1745589047930,-569.90314377,0.00035616,2]
[358959870,1745589047941,-500.0,0.00035616,2]
[358959871,1745589047950,-1328.36,0.00035616,2]
[358959872,1745589047960,-556.10628371,0.00035616,2]
[358959873,1745589047969,-500.0,0.00035616,2]
[358959874,1745589047980,-500.0,0.00035616,2]
[358959875,1745589047990,-181.88391241,0.00035616,2]
[358959876,1745589048000,-608.03,0.00035616,2]
[358959877,1745589048010,-511.30064413,0.00035616,2]
[358959878,1745589048020,-500.0,0.00035616,2]
[358959879,1745589048030,-705.31,0.00035616,2]
[358959880,1745589048039,-500.0,0.00035616,2]
[358959881,1745589048064,-749.95,0.00035616,2]
[358959882,1745589048075,-500.0,0.00035616,2]
[358959883,1745589048086,-973.98,0.00035616,2]
[358959884,1745589048097,-500.0,0.00035616,2]
[358959885,1745589048108,-500.0,0.00035616,2]
[358959886,1745589048118,-500.0,0.00035616,2]
[358959887,1745589048130,-500.0,0.00035616,2]
[358959888,1745589048140,-595.8,0.00035616,2]
[358959889,1745589048150,-607.41,0.00035616,2]
[358959890,1745589048161,-500.0,0.00035616,2]
[358959891,1745589048171,-500.0,0.00035616,2]
[358959892,1745589048181,-548.46153493,0.00035616,2]
[358959893,1745589048191,-500.0,0.00035616,2]
[358959894,1745589048201,-941.48,0.00035616,2]
[358959895,1745589048211,-500.0,0.00035616,2]
[358959896,1745589048221,-500.0,0.00035616,2]
[358959897,1745589048232,-500.0,0.00035616,2]
[358959898,1745589048243,-500.0,0.00035616,2]
[358959899,1745589048253,-500.0,0.00035616,2]
[358959900,1745589048263,-840.71,0.00035616,2]
[358959901,1745589048274,-500.0,0.00035616,2]
[358959902,1745589048284,-516.64610386,0.00035616,2]
[358959903,1745589048294,-591.38,0.00035616,2]
[358959904,1745589048304,-500.0,0.00035616,2]
[358959905,1745589048314,-500.0,0.00035616,2]
[358959906,1745589048325,-1053.57,0.00035616,2]
[358959907,1745589048335,-500.0,0.00035616,2]
[358959908,1745589048345,-469.32497562,0.00035616,2]
[358959909,1745589048356,-625.83293023,0.00035616,2]
[358959910,1745589048367,-1042.75,0.00035616,2]
[358959911,1745589048378,-535.01,0.00035616,2]
[358959912,1745589048388,-500.0,0.00035616,2]
[358959913,1745589048399,-547.40449411,0.00035616,2]
[358959914,1745589048409,-2069.21,0.00035616,2]
[358959915,1745589048421,-500.0,0.00035616,2]
[358959916,1745589048431,-500.0,0.00035616,2]
[358959917,1745589048442,-500.0,0.00035616,2]
[358959918,1745589048454,-500.0,0.00035616,2]
[358959919,1745589048465,-500.0,0.00035616,2]
[358959920,1745589048476,-1094.68,0.00035616,2]
[358959921,1745589048492,-1015.48,0.00035616,2]
[358959922,1745589048503,-500.0,0.00035616,2]
[358959923,1745589048513,-500.0,0.00035616,2]
[358959924,1745589048523,-534.35,0.00035616,2]
[358959925,1745589048534,-500.0,0.00035616,2]
[358959926,1745589048544,-500.0,0.00035616,2]
[358959927,1745589048554,-500.0,0.00035616,2]
[358959928,1745589048568,-500.0,0.00035616,2]
[358959929,1745589048580,-500.0,0.00035616,2]
[358959930,1745589048591,-500.0,0.00035616,2]
[358959931,1745589048602,-500.0,0.00035616,2]
[358959932,1745589048612,-858.84,0.00035616,2]
[358959933,1745589048623,-974.15,0.00035616,2]
[358959934,1745589048633,-500.0,0.00035616,2]
[358959935,1745589048644,-902.2,0.00035616,2]
[358959936,1745589048656,-746.43,0.00035616,2]
[358959937,1745589048666,-527.49348698,0.00035616,2]
[358959938,1745589048677,-500.0,0.00035616,2]
[358959939,1745589048687,-1045.8,0.00035616,2]
[358959940,1745589048698,-500.0,0.00035616,2]
[358959941,1745589048710,-529.55287912,0.00035616,2]
[358959942,1745589048720,-950.56,0.00035616,2]
[358959943,1745589048731,-500.0,0.00035616,2]
[358959944,1745589048741,-500.0,0.00035616,2]
[358959945,1745589048752,-500.0,0.00035616,2]
[358959946,1745589048763,-500.0,0.00035616,2]
[358959947,1745589048774,-500.83,0.00035616,2]
[358959948,1745589048785,-594.68,0.00035616,2]
[358959949,1745589048795,-500.0,0.00035616,2]
[358959950,1745589048807,-500.0,0.00035616,2]
[358959951,1745589048818,-559.9624969,0.00035616,2]
[358959952,1745589048833,-587.37648499,0.00035616,2]
[358959953,1745589048844,-889.9,0.00035616,2]
[358959954,1745589048855,-659.72,0.00035616,2]
[358959955,1745589048866,-500.0,0.00035616,2]
[358959956,1745589048876,-500.0,0.00035616,2]
[358959957,1745589048887,-1139.46,0.00035616,2]
[358959958,1745589048897,-568.55,0.00035616,2]
[358959959,1745589048908,-518.62,0.00035616,2]
[358959960,1745589048918,-673.42,0.00035616,2]
[358959961,1745589048929,-500.0,0.00035616,2]
[358959962,1745589048944,-500.0,0.00035616,2]
[358959963,1745589048955,-539.25134629,0.00035616,2]
[358959964,1745589048965,-500.0,0.00035616,2]
[358959965,1745589048976,-907.78,0.00035616,2]
[358959966,1745589048986,-716.63,0.00035616,2]
[358959967,1745589048996,-537.48670232,0.00035616,2]
[358959968,1745589049007,-845.57,0.00035616,2]
[358959969,1745589049018,-500.0,0.00035616,2]
[358959970,1745589049028,-500.0,0.00035616,2]
[358959971,1745589049038,-547.7032108,0.00035616,2]
[358959972,1745589049048,-500.0,0.00035616,2]
[358959973,1745589049059,-516.03,0.00035616,2]
[358959974,1745589049070,-500.0,0.00035616,2]
[358959975,1745589049081,-500.0,0.00035616,2]
[358959976,1745589049092,-500.0,0.00035616,2]
[358959977,1745589049103,-500.0,0.00035616,2]
[358959978,1745589049113,-500.0,0.00035616,2]
[358959979,1745589049124,-500.0,0.00035616,2]
[358959980,1745589049135,-500.0,0.00035616,2]
[358959981,1745589049146,-592.45875097,0.00035616,2]
[358959982,1745589049158,-500.0,0.00035616,2]
[358959983,1745589049169,-500.0,0.00035616,2]
[358959984,1745589049181,-1049.77,0.00035616,2]
[358959985,1745589049193,-500.0,0.00035616,2]
[358959986,1745589049204,-500.0,0.00035616,2]
[358959987,1745589049215,-500.0,0.00035616,2]
[358959988,1745589049226,-500.0,0.00035616,2]
[358959989,1745589049238,-500.0,0.00035616,2]
[358959990,1745589049249,-500.0,0.00035616,2]
[358959991,1745589049260,-500.0,0.00035616,2]
[358959992,1745589049271,-500.0,0.00035616,2]
[358959993,1745589049282,-500.0,0.00035616,2]
[358959994,1745589049292,-581.11602455,0.00035616,2]
[358959995,1745589049303,-582.1,0.00035616,2]
[358959996,1745589049314,-500.0,0.00035616,2]
[358959997,1745589049325,-691.79,0.00035616,2]
[358959998,1745589049337,-500.0,0.00035616,2]
[358959999,1745589049348,-722.62,0.00035616,2]
[358960000,1745589049359,-704.57,0.00035616,2]
[358960001,1745589049369,-500.0,0.00035616,2]
[358960002,1745589049380,-571.91,0.00035616,2]
[358960003,1745589049395,-500.0,0.00035616,2]
[358960004,1745589049406,-500.0,0.00035616,2]
[358960005,1745589049417,-739.8,0.00035616,2]
[358960006,1745589049428,-799.16,0.00035616,2]
[358960007,1745589049439,-500.0,0.00035616,2]
[358960008,1745589049450,-500.0,0.00035616,2]
[358960009,1745589049461,-802.46,0.00035616,2]
[358960010,1745589049472,-640.19,0.00035616,2]
[358960011,1745589049483,-500.0,0.00035616,2]
[358960012,1745589049494,-500.0,0.00035616,2]
[358960013,1745589049507,-500.0,0.00035616,2]
[358960014,1745589049517,-500.0,0.00035616,2]
[358960015,1745589049528,-500.0,0.00035616,2]
[358960016,1745589049539,-500.0,0.00035616,2]
[358960017,1745589049549,-378.63435199,0.00035616,2]
[358960018,1745589050988,-121.36564801,0.00035616,2]
[358960019,1745589050999,-446.25835199,0.00035616,2]
[358960020,1745589051012,-53.74164801,0.00035616,2]
[358960021,1745589051022,-500.0,0.00035616,2]
[358960022,1745589051033,-500.0,0.00035616,2]
[358960023,1745589051043,-520.74135844,0.00035616,2]
[358960024,1745589051053,-500.0,0.00035616,2]
[358960025,1745589051062,-500.0,0.00035616,2]
[358960026,1745589051073,-500.0,0.00035616,2]
[358960027,1745589051084,-500.0,0.00035616,2]
[358960028,1745589051093,-585.01655412,0.00035616,2]
[358960029,1745589051104,-500.0,0.00035616,2]
[358960030,1745589051114,-514.24,0.00035616,2]
[358960031,1745589051124,-500.0,0.00035616,2]
[358960032,1745589051134,-942.33,0.00035616,2]
[358960033,1745589051144,-500.0,0.00035616,2]
[358960034,1745589051155,-590.35,0.00035616,2]
[358960035,1745589051166,-975.25,0.00035616,2]
[358960036,1745589051175,-500.0,0.00035616,2]
[358960037,1745589051186,-758.21,0.00035616,2]
[358960038,1745589051196,-510.88844777,0.00035616,2]
[358960039,1745589051206,-918.55,0.00035616,2]
[358960040,1745589051216,-1419.92,0.00035616,2]
[358960041,1745589051227,-590.99,0.00035616,2]
[358960042,1745589051237,-500.0,0.00035616,2]
[358960043,1745589051247,-508.03871539,0.00035616,2]
[358960044,1745589051257,-500.0,0.00035616,2]
[358960045,1745589051267,-1402.19,0.00035616,2]
[358960046,1745589051278,-735.95,0.00035616,2]
[358960047,1745589051288,-518.65802727,0.00035616,2]
[358960048,1745589051298,-500.0,0.00035616,2]
[358960049,1745589051308,-500.0,0.00035616,2]
[358960050,1745589051318,-500.0,0.00035616,2]
[358960051,1745589051329,-988.05,0.00035616,2]
[358960052,1745589051339,-500.0,0.00035616,2]
[358960053,1745589051350,-500.0,0.00035616,2]
[358960054,1745589051360,-179.41990674,0.00035616,2]
[358960055,1745589051371,-500.0,0.00035616,2]
[358960056,1745589051383,-500.0,0.00035616,2]
[358960057,1745589051394,-500.0,0.00035616,2]
[358960058,1745589051405,-801.04,0.00035616,2]
[358960059,1745589051416,-544.41,0.00035616,2]
[358960060,1745589051427,-500.0,0.00035616,2]
[358960061,1745589051437,-500.0,0.00035616,2]
[358960062,1745589051447,-500.0,0.00035616,2]
[358960063,1745589051457,-946.17,0.00035616,2]
[358960064,1745589051467,-1244.71,0.00035616,2]
[358960065,1745589051477,-1726.82,0.00035616,2]
[358960066,1745589051487,-500.0,0.00035616,2]
[358960067,1745589051497,-547.995151,0.00035616,2]
[358960068,1745589051506,-724.0,0.00035616,2]
[358960069,1745589051516,-602.56,0.00035616,2]
[358960070,1745589051525,-500.0,0.00035616,2]
[358960071,1745589051535,-500.0,0.00035616,2]
[358960072,1745589051545,-500.0,0.00035616,2]